fUST/lending_fUST_20240504
["ID","MTS","AMOUNT","RATE_DAILY","PERIOD"]
[325365388,1714752660900,-500.0,0.00026027,2]
[325365389,1714752660909,-806.09,0.00026027,2]
[325365390,1714752660918,-315.16108332,0.00026027,2]
[325365391,1714752660927,-500.0,0.00026027,2]
[325365392,1714752660936,-500.0,0.00026027,2]
[325365393,1714752660945,-500.0,0.00026027,2]
[325365394,1714752660954,-184.63276704,0.00026027,2]
[325365395,1714752660964,-500.0,0.00026027,2]
[325365396,1714752660973,-500.0,0.00026027,2]
[325365397,1714752660983,-500.0536974,0.00026027,2]
[325365398,1714752660997,-500.0,0.00026027,2]
[325365399,1714752661007,-500.0,0.00026027,2]
[325365400,1714752661016,-275.21630504,0.00026027,2]
[325365401,1714752661027,-1297.22,0.00026027,2]
[325365402,1714752661117,-492.47145015,0.00026027,2]
[325365403,1714752661136,-500.0,0.00026027,2]
[325365404,1714752661146,-512.1,0.00026027,2]
[325365405,1714752661155,-500.0,0.00026027,2]
[325365406,1714752661165,-500.0,0.00026027,2]
[325365407,1714752661175,-500.0,0.00026027,2]
[325365408,1714752661184,-500.0,0.00026027,2]
[325365409,1714752661193,-500.0,0.00026027,2]
[325365410,1714752661202,-562.7,0.00026027,2]
[325365411,1714752661211,-500.0,0.00026027,2]
[325365412,1714752661221,-586.15,0.00026027,2]
[325365413,1714752661230,-643.18,0.00026027,2]
[325365414,1714752661240,-500.0,0.00026027,2]
[325365415,1714752661249,-500.0,0.00026027,2]
[325365416,1714752661259,-500.0,0.00026027,2]
[325365417,1714752661269,-1159.64,0.00026027,2]
[325365418,1714752661278,-607.56,0.00026027,2]
[325365419,1714752661288,-500.0,0.00026027,2]
[325365420,1714752661297,-1526.51,0.00026027,2]
[325365421,1714752661307,-2142.42,0.00026027,2]
[325365422,1714752661317,-500.0,0.00026027,2]
[325365423,1714752661326,-500.0,0.00026027,2]
[325365424,1714752661335,-500.0,0.00026027,2]
[325365425,1714752661345,-2381.42,0.00026027,2]
[325365426,1714752661355,-630.7,0.00026027,2]
[325365427,1714752661364,-500.0,0.00026027,2]
[325365428,1714752661374,-893.73,0.00026027,2]
[325365429,1714752661384,-500.0,0.00026027,2]
[325365430,1714752661394,-3272.0,0.00026027,2]
[325365431,1714752661403,-500.0,0.00026027,2]
[325365432,1714752661413,-500.0,0.00026027,2]
[325365433,1714752661422,-3018.34,0.00026027,2]
[325365434,1714752661432,-500.0,0.00026027,2]
[325365435,1714752661441,-521.73,0.00026027,2]
[325365436,1714752661451,-500.0,0.00026027,2]
[325365437,1714752661460,-500.0,0.00026027,2]
[325365438,1714752661470,-500.0,0.00026027,2]
[325365439,1714752661479,-477.57693436,0.00026027,2]
[325365440,1714752661488,-500.0,0.00026027,2]
[325365441,1714752661498,-500.0,0.00026027,2]
[325365442,1714752661507,-510.42,0.00026027,2]
[325365443,1714752661517,-533.1,0.00026027,2]
[325365444,1714752661527,-558.54,0.00026027,2]
[325365445,1714752661537,-500.0,0.00026027,2]
[325365446,1714752661546,-703.36,0.00026027,2]
[325365447,1714752661555,-500.0,0.00026027,2]
[325365448,1714752661565,-500.0,0.00026027,2]
[325365449,1714752661574,-500.0,0.00026027,2]
[325365450,1714752661583,-500.0,0.00026027,2]
[325365451,1714752661592,-1095.57,0.00026027,2]
[325365452,1714752661601,-723.47,0.00026027,2]
[325365453,1714752661611,-1145.55,0.00026027,2]
[325365454,1714752661620,-500.0,0.00026027,2]
[325365455,1714752661630,-500.0,0.00026027,2]
[325365456,1714752661639,-500.0,0.00026027,2]
[325365457,1714752661648,-510.80115112,0.00026027,2]
[325365458,1714752661657,-564.06,0.00026027,2]
[325365459,1714752661667,-500.0,0.00026027,2]
[325365460,1714752661677,-1500.12,0.00026027,2]
[325365461,1714752661686,-1269.66,0.00026027,2]
[325365462,1714752661696,-803.56,0.00026027,2]
[325365463,1714752661705,-182.12671662,0.00026027,2]
[325365464,1714752661715,-500.0,0.00026027,2]
[325365465,1714752661724,-500.0,0.00026027,2]
[325365466,1714752661733,-500.0,0.00026027,2]
[325365467,1714752661743,-500.0,0.00026027,2]
[325365468,1714752661752,-5450.43,0.00026027,2]
[325365469,1714752661761,-500.0,0.00026027,2]
[325365470,1714752661772,-9639.94,0.00026027,2]
[325365471,1714752661782,-500.0,0.00026027,2]
[325365472,1714752661791,-500.0,0.00026027,2]
[325365473,1714752661800,-500.0,0.00026027,2]
[325365474,1714752661809,-2863.96,0.00026027,2]
[325365475,1714752661818,-503.51101643,0.00026027,2]
[325365476,1714752661827,-5846.76,0.00026027,2]
[325365477,1714752661836,-655.08,0.00026027,2]
[325365478,1714752661845,-500.0,0.00026027,2]
[325365479,1714752661854,-500.0,0.00026027,2]
[325365480,1714752661863,-1488.25,0.00026027,2]
[325365481,1714752661874,-8763.49,0.00026027,2]
[325365482,1714752661883,-500.0,0.00026027,2]
[325365483,1714752661892,-500.0,0.00026027,2]
[325365484,1714752661900,-500.0,0.00026027,2]
[325365485,1714752661910,-649.18,0.00026027,2]
[325365486,1714752661919,-954.84,0.00026027,2]
[325365487,1714752661928,-919.36,0.00026027,2]
[325365488,1714752661937,-3161.56,0.00026027,2]
[325365489,1714752661946,-500.0,0.00026027,2]
[325365490,1714752661956,-1417.26,0.00026027,2]
[325365491,1714752661965,-826.39,0.00026027,2]
[325365492,1714752661974,-500.0,0.00026027,2]
[325365493,1714752661986,-609.36,0.00026027,2]
[325365494,1714752662001,-500.0,0.00026027,2]
[325365495,1714752662011,-507.90207485,0.00026027,2]
[325365496,1714752662022,-500.0,0.00026027,2]
[325365497,1714752662032,-500.0,0.00026027,2]
[325365498,1714752662043,-500.0,0.00026027,2]
[325365499,1714752662053,-500.0,0.00026027,2]
[325365500,1714752662063,-500.0,0.00026027,2]
[325365501,1714752662074,-500.0,0.00026027,2]
[325365502,1714752662084,-500.0,0.00026027,2]
[325365503,1714752662094,-500.0,0.00026027,2]
[325365504,1714752662103,-500.0,0.00026027,2]
[325365505,1714752662113,-2231.64,0.00026027,2]
[325365506,1714752662122,-1036.61,0.00026027,2]
[325365507,1714752662131,-500.0,0.00026027,2]
[325365508,1714752662141,-1809.29,0.00026027,2]
[325365509,1714752662150,-2033.06,0.00026027,2]
[325365510,1714752662160,-661.84,0.00026027,2]
[325365511,1714752662169,-1304.22,0.00026027,2]
[325365512,1714752662179,-500.0,0.00026027,2]
[325365513,1714752662188,-841.9,0.00026027,2]
[325365514,1714752662197,-4270.44,0.00026027,2]
[325365515,1714752662206,-500.0,0.00026027,2]
[325365516,1714752662215,-500.0,0.00026027,2]
[325365517,1714752662225,-651.21,0.00026027,2]
[325365518,1714752662235,-500.0,0.00026027,2]
[325365519,1714752662245,-641.97,0.00026027,2]
[325365520,1714752662254,-539.59,0.00026027,2]
[325365521,1714752662264,-500.0,0.00026027,2]
[325365522,1714752662274,-5444.24,0.00026027,2]
[325365523,1714752662283,-500.0,0.00026027,2]
[325365524,1714752662293,-2248.39,0.00026027,2]
[325365525,1714752662302,-1173.15,0.00026027,2]
[325365526,1714752662311,-41696.51,0.00026027,2]
[325365527,1714752662322,-812.09,0.00026027,2]
[325365528,1714752662337,-500.0,0.00026027,2]
[325365529,1714752662355,-500.0,0.00026027,2]
[325365530,1714752662366,-1369.8,0.00026027,2]
[325365531,1714752662375,-500.0,0.00026027,2]
[325365532,1714752662385,-1026.08,0.00026027,2]
[325365533,1714752662394,-3496.05,0.00026027,2]
[325365534,1714752662404,-500.0,0.00026027,2]
[325365535,1714752662413,-500.0,0.00026027,2]
[325365536,1714752662422,-500.0,0.00026027,2]
[325365537,1714752662432,-5620.69,0.00026027,2]
[325365538,1714752662441,-502.58,0.00026027,2]
[325365539,1714752662450,-560.58,0.00026027,2]
[325365540,1714752662460,-1067.14,0.00026027,2]
[325365541,1714752662469,-500.0,0.00026027,2]
[325365542,1714752662479,-506.0644216,0.00026027,2]
[325365543,1714752662489,-500.0,0.00026027,2]
[325365544,1714752662498,-500.0,0.00026027,2]
[325365545,1714752662507,-500.0,0.00026027,2]
[325365546,1714752662518,-500.0,0.00026027,2]
[325365547,1714752662528,-500.0,0.00026027,2]
[325365548,1714752662537,-783.3,0.00026027,2]
[325365549,1714752662546,-2448.4,0.00026027,2]
[325365550,1714752662556,-513.96,0.00026027,2]
[325365551,1714752662565,-816.54,0.00026027,2]
[325365552,1714752662576,-1009.08,0.00026027,2]
[325365553,1714752662586,-900.6,0.00026027,2]
[325365554,1714752662595,-500.0,0.00026027,2]
[325365555,1714752662604,-547.80123073,0.00026027,2]
[325365556,1714752662613,-1263.57,0.00026027,2]
[325365557,1714752662623,-744.34,0.00026027,2]
[325365558,1714752662632,-500.0,0.00026027,2]
[325365559,1714752662641,-1057.19,0.00026027,2]
[325365560,1714752662651,-502.00512221,0.00026027,2]
[325365561,1714752662660,-500.0,0.00026027,2]
[325365562,1714752662669,-500.0,0.00026027,2]
[325365563,1714752662678,-500.0,0.00026027,2]
[325365564,1714752662769,-11373.14,0.00026027,2]
[325365565,1714752662778,-500.0,0.00026027,2]
[325365566,1714752662788,-561.08,0.00026027,2]
[325365567,1714752662797,-1599.42,0.00026027,2]
[325365568,1714752662806,-9072.72,0.00026027,2]
[325365569,1714752662815,-514.23,0.00026027,2]
[325365570,1714752662824,-977.23,0.00026027,2]
[325365571,1714752662833,-1156.58,0.00026027,2]
[325365572,1714752662842,-1114.81,0.00026027,2]
[325365573,1714752662851,-500.0,0.00026027,2]
[325365574,1714752662860,-1435.75,0.00026027,2]
[325365575,1714752662869,-1214.88,0.00026027,2]
[325365576,1714752662878,-1377.22,0.00026027,2]
[325365577,1714752662887,-620.11209801,0.00026051,2]
[325365578,1714752662896,-320.0,0.00026073,2]
[325365579,1714752662905,-609.08731,0.000261,2]
[325365580,1714752662914,-609.08731,0.000262,2]
[325365581,1714752662923,-155.59206037,0.00026271,2]
[325365582,1714752662932,-109604.76882059,0.00026271,7]
[325365583,1714752662942,-2801.251527,0.00026271,2]
[325365584,1714752662951,-2801.251527,0.00026271,2]
[325365585,1714752662959,-285.453965,0.00026271,2]
[325365586,1714752662968,-285.453965,0.00026271,2]
[325365587,1714752662977,-151.0,0.00026271,2]
[325365588,1714752662990,-342.576078,0.00026271,2]
[325365589,1714752662999,-342.576078,0.00026271,2]
[325365590,1714752663009,-154.65974855,0.00026271,2]
[325365591,1714752663020,-757.41261472,0.00026271,2]
[325365592,1714752663032,-609.08731,0.000263,2]
[325365593,1714752663043,-500.0,0.00026301,2]
[325365594,1714752663053,-500.0,0.00026301,2]
[325365595,1714752663069,-500.0,0.00026301,2]
[325365596,1714752663079,-588.8,0.00026301,2]
[325365597,1714752663089,-597.46,0.00026301,2]
[325365598,1714752663098,-500.0,0.00026301,2]
[325365599,1714752663108,-500.0,0.00026301,2]
[325365600,1714752663118,-500.0,0.00026301,2]
[325365601,1714752663127,-500.0,0.00026301,2]
[325365602,1714752663136,-505.13594109,0.00026301,2]
[325365603,1714752663145,-631.93,0.00026301,2]
[325365604,1714752663155,-500.0,0.00026301,2]
[325365605,1714752663164,-887.56,0.00026301,2]
[325365606,1714752663173,-500.0,0.00026301,2]
[325365607,1714752663183,-804.94,0.00026301,2]
[325365608,1714752663191,-500.0,0.00026301,2]
[325365609,1714752663200,-2485.15,0.00026301,2]
[325365610,1714752663209,-500.0,0.00026301,2]
[325365611,1714752663218,-500.0,0.00026301,2]
[325365612,1714752663228,-1245.86,0.00026301,2]
[325365613,1714752663237,-500.0,0.00026301,2]
[325365614,1714752663246,-625.08,0.00026301,2]
[325365615,1714752663255,-500.0,0.00026301,2]
[325365616,1714752663266,-500.0,0.00026301,2]
[325365617,1714752663276,-806.09,0.00026301,2]
[325365618,1714752663286,-500.0,0.00026301,2]
[325365619,1714752663295,-500.0,0.00026301,2]
[325365620,1714752663309,-500.0,0.00026301,2]
[325365621,1714752663322,-500.0,0.00026301,2]
[325365622,1714752663331,-500.0,0.00026301,2]
[325365623,1714752663341,-500.0,0.00026301,2]
[325365624,1714752663351,-1297.22,0.00026301,2]
[325365625,1714752663360,-536.38945982,0.00026301,2]
[325365626,1714752663370,-512.1,0.00026301,2]
[325365627,1714752663379,-500.0,0.00026301,2]
[325365628,1714752663388,-500.0,0.00026301,2]
[325365629,1714752663398,-500.0,0.00026301,2]
[325365630,1714752663407,-500.0,0.00026301,2]
[325365631,1714752663417,-562.7,0.00026301,2]
[325365632,1714752663426,-500.0,0.00026301,2]
[325365633,1714752663436,-586.15,0.00026301,2]
[325365634,1714752663446,-643.18,0.00026301,2]
[325365635,1714752663455,-500.0,0.00026301,2]
[325365636,1714752663464,-500.0,0.00026301,2]
[325365637,1714752663473,-500.0,0.00026301,2]
[325365638,1714752663483,-1159.64,0.00026301,2]
[325365639,1714752663492,-607.56,0.00026301,2]
[325365640,1714752663501,-500.0,0.00026301,2]
[325365641,1714752663510,-1526.51,0.00026301,2]
[325365642,1714752663521,-2142.42,0.00026301,2]
[325365643,1714752663530,-500.0,0.00026301,2]
[325365644,1714752663540,-500.0,0.00026301,2]
[325365645,1714752663550,-500.0,0.00026301,2]
[325365646,1714752663560,-2381.42,0.00026301,2]
[325365647,1714752663569,-630.7,0.00026301,2]
[325365648,1714752663578,-500.0,0.00026301,2]
[325365649,1714752663587,-893.73,0.00026301,2]
[325365650,1714752663596,-500.0,0.00026301,2]
[325365651,1714752663605,-3272.0,0.00026301,2]
[325365652,1714752663615,-500.0,0.00026301,2]
[325365653,1714752663624,-500.0,0.00026301,2]
[325365654,1714752663633,-3018.34,0.00026301,2]
[325365655,1714752663642,-500.0,0.00026301,2]
[325365656,1714752663652,-521.73,0.00026301,2]
[325365657,1714752663661,-500.0,0.00026301,2]
[325365658,1714752663671,-500.0,0.00026301,2]
[325365659,1714752663679,-500.0,0.00026301,2]
[325365660,1714752663689,-500.0,0.00026301,2]
[325365661,1714752663698,-500.0,0.00026301,2]
[325365662,1714752663707,-510.42,0.00026301,2]
[325365663,1714752663716,-533.1,0.00026301,2]
[325365664,1714752663726,-151.0,0.00026301,2]
[325365665,1714752663735,-558.54,0.00026301,2]
[325365666,1714752663746,-554.06487145,0.00026301,2]
[325365667,1714752663756,-703.36,0.00026301,2]
[325365668,1714752663766,-247.33187,0.00026301,2]
[325365669,1714752663776,-247.33187,0.00026301,2]
[325365670,1714752663785,-500.0,0.00026301,2]
[325365671,1714752663794,-500.0,0.00026301,2]
[325365672,1714752663803,-1336.341778,0.00026301,2]
[325365673,1714752663812,-1336.341778,0.00026301,2]
[325365674,1714752663822,-500.0,0.00026301,2]
[325365675,1714752663831,-151.0,0.00026301,2]
[325365676,1714752663840,-151.0,0.00026301,2]
[325365677,1714752663849,-1095.57,0.00026301,2]
[325365678,1714752663858,-723.47,0.00026301,2]
[325365679,1714752663868,-151.0,0.00026301,2]
[325365680,1714752663877,-151.0,0.00026301,2]
[325365681,1714752663886,-1145.55,0.00026301,2]
[325365682,1714752663895,-500.0,0.00026301,2]
[325365683,1714752663905,-283.864797,0.00026301,2]
[325365684,1714752663915,-500.0,0.00026301,2]
[325365685,1714752663924,-500.0,0.00026301,2]
[325365686,1714752663933,-283.864797,0.00026301,2]
[325365687,1714752663942,-651.683887,0.00026301,2]
[325365688,1714752663951,-651.683887,0.00026301,2]
[325365689,1714752663961,-421.163794,0.00026301,2]
[325365690,1714752663970,-564.06,0.00026301,2]
[325365691,1714752663979,-521.35653962,0.00026301,2]
[325365692,1714752663991,-1500.12,0.00026301,2]
[325365693,1714752664004,-1269.66,0.00026301,2]
[325365694,1714752664014,-803.56,0.00026301,2]
[325365695,1714752664023,-500.0,0.00026301,2]
[325365696,1714752664033,-421.163794,0.00026301,2]
[325365697,1714752664041,-500.0,0.00026301,2]
[325365698,1714752664050,-500.0,0.00026301,2]
[325365699,1714752664062,-5450.43,0.00026301,2]
[325365700,1714752664073,-505.9950087,0.00026301,2]
[325365701,1714752664082,-1718.661476,0.00026301,2]
[325365702,1714752664091,-340.946251,0.00026301,2]
[325365703,1714752664101,-9639.94,0.00026301,2]
[325365704,1714752664110,-340.946251,0.00026301,2]
[325365705,1714752664119,-500.0,0.00026301,2]
[325365706,1714752664128,-1718.661476,0.00026301,2]
[325365707,1714752664137,-3178.906119,0.00026301,2]
[325365708,1714752664146,-500.0,0.00026301,2]
[325365709,1714752664155,-7455.962415,0.00026301,2]
[325365710,1714752664165,-3178.906119,0.00026301,2]
[325365711,1714752664175,-500.0,0.00026301,2]
[325365712,1714752664262,-7455.962415,0.00026301,2]
[325365713,1714752664273,-2863.96,0.00026301,2]
[325365714,1714752664283,-262.261482,0.00026301,2]
[325365715,1714752664293,-5846.76,0.00026301,2]
[325365716,1714752664302,-655.08,0.00026301,2]
[325365717,1714752664312,-262.261482,0.00026301,2]
[325365718,1714752664321,-500.0,0.00026301,2]
[325365719,1714752664330,-500.0,0.00026301,2]
[325365720,1714752664339,-8763.49,0.00026301,2]
[325365721,1714752664348,-1488.25,0.00026301,2]
[325365722,1714752664357,-151.0,0.00026301,2]
[325365723,1714752664367,-500.0,0.00026301,2]
[325365724,1714752664376,-517.79304948,0.00026301,2]
[325365725,1714752664385,-649.18,0.00026301,2]
[325365726,1714752664395,-500.0,0.00026301,2]
[325365727,1714752664404,-954.84,0.00026301,2]
[325365728,1714752664414,-919.36,0.00026301,2]
[325365729,1714752664424,-3161.56,0.00026301,2]
[325365730,1714752664433,-500.0,0.00026301,2]
[325365731,1714752664442,-151.0,0.00026301,2]
[325365732,1714752664452,-1417.26,0.00026301,2]
[325365733,1714752664461,-826.39,0.00026301,2]
[325365734,1714752664470,-500.0,0.00026301,2]
[325365735,1714752664479,-609.36,0.00026301,2]
[325365736,1714752664489,-500.0,0.00026301,2]
[325365737,1714752664499,-500.0,0.00026301,2]
[325365738,1714752664508,-453.72915081,0.00026301,2]
[325365739,1714752664518,-500.0,0.00026301,2]
[325365740,1714752664527,-500.0,0.00026301,2]
[325365741,1714752664536,-500.0,0.00026301,2]
[325365742,1714752664546,-500.0,0.00026301,2]
[325365743,1714752664556,-500.0,0.00026301,2]
[325365744,1714752664566,-500.0,0.00026301,2]
[325365745,1714752664575,-2231.64,0.00026301,2]
[325365746,1714752664584,-2711.564201,0.00026301,2]
[325365747,1714752664594,-1036.61,0.00026301,2]
[325365748,1714752664603,-2711.564201,0.00026301,2]
[325365749,1714752664613,-500.0,0.00026301,2]
[325365750,1714752664622,-1809.29,0.00026301,2]
[325365751,1714752664632,-2033.06,0.00026301,2]
[325365752,1714752664641,-661.84,0.00026301,2]
[325365753,1714752664650,-1304.22,0.00026301,2]
[325365754,1714752664659,-500.0,0.00026301,2]
[325365755,1714752664668,-841.9,0.00026301,2]
[325365756,1714752664677,-4270.44,0.00026301,2]
[325365757,1714752664686,-500.0,0.00026301,2]
[325365758,1714752664697,-500.0,0.00026301,2]
[325365759,1714752664706,-651.21,0.00026301,2]
[325365760,1714752664716,-500.0,0.00026301,2]
[325365761,1714752664725,-641.97,0.00026301,2]
[325365762,1714752664735,-539.59,0.00026301,2]
[325365763,1714752664745,-500.0,0.00026301,2]
[325365764,1714752664755,-5444.24,0.00026301,2]
[325365765,1714752664764,-500.0,0.00026301,2]
[325365766,1714752664774,-2248.39,0.00026301,2]
[325365767,1714752664783,-1173.15,0.00026301,2]
[325365768,1714752664792,-274.449673,0.00026301,2]
[325365769,1714752664802,-41696.51,0.00026301,2]
[325365770,1714752664812,-812.09,0.00026301,2]
[325365771,1714752664821,-216.539759,0.00026301,2]
[325365772,1714752664830,-500.0,0.00026301,2]
[325365773,1714752664841,-274.449673,0.00026301,2]
[325365774,1714752664851,-500.0,0.00026301,2]
[325365775,1714752664862,-500.0,0.00026301,2]
[325365776,1714752664871,-1369.8,0.00026301,2]
[325365777,1714752664880,-216.539759,0.00026301,2]
[325365778,1714752664889,-1026.08,0.00026301,2]
[325365779,1714752664898,-3496.05,0.00026301,2]
[325365780,1714752664907,-500.0,0.00026301,2]
[325365781,1714752664917,-500.0,0.00026301,2]
[325365782,1714752664926,-500.0,0.00026301,2]
[325365783,1714752664936,-151.0,0.00026301,2]
[325365784,1714752664945,-5620.69,0.00026301,2]
[325365785,1714752664954,-502.58,0.00026301,2]
[325365786,1714752664964,-491.217556,0.00026301,2]
[325365787,1714752664973,-560.58,0.00026301,2]
[325365788,1714752664983,-1067.14,0.00026301,2]
[325365789,1714752664993,-500.0,0.00026301,2]
[325365790,1714752665002,-491.217556,0.00026301,2]
[325365791,1714752665011,-500.0,0.00026301,2]
[325365792,1714752665021,-500.0,0.00026301,2]
[325365793,1714752665031,-500.0,0.00026301,2]
[325365794,1714752665040,-500.0,0.00026301,2]
[325365795,1714752665050,-2448.4,0.00026301,2]
[325365796,1714752665060,-783.3,0.00026301,2]
[325365797,1714752665071,-856.4002,0.00026301,2]
[325365798,1714752665080,-513.96,0.00026301,2]
[325365799,1714752665090,-816.54,0.00026301,2]
[325365800,1714752665099,-856.4002,0.00026301,2]
[325365801,1714752665108,-151.116766,0.00026301,2]
[325365802,1714752665118,-1009.08,0.00026301,2]
[325365803,1714752665127,-900.6,0.00026301,2]
[325365804,1714752665136,-500.0,0.00026301,2]
[325365805,1714752665146,-1263.57,0.00026301,2]
[325365806,1714752665155,-744.34,0.00026301,2]
[325365807,1714752665165,-500.0,0.00026301,2]
[325365808,1714752665174,-1057.19,0.00026301,2]
[325365809,1714752665184,-500.40122726,0.00026301,2]
[325365810,1714752665193,-500.0,0.00026301,2]
[325365811,1714752665202,-500.0,0.00026301,2]
[325365812,1714752665212,-11373.14,0.00026301,2]
[325365813,1714752665222,-151.0,0.00026301,2]
[325365814,1714752665231,-500.0,0.00026301,2]
[325365815,1714752665240,-352.490302,0.00026301,2]
[325365816,1714752665249,-561.08,0.00026301,2]
[325365817,1714752665259,-151.0,0.00026301,2]
[325365818,1714752665268,-1599.42,0.00026301,2]
[325365819,1714752665279,-352.490302,0.00026301,2]
[325365820,1714752665289,-9072.72,0.00026301,2]
[325365821,1714752665298,-514.23,0.00026301,2]
[325365822,1714752665308,-977.23,0.00026301,2]
[325365823,1714752665317,-4570.301963,0.00026301,2]
[325365824,1714752665327,-1156.58,0.00026301,2]
[325365825,1714752665337,-1114.81,0.00026301,2]
[325365826,1714752665346,-500.0,0.00026301,2]
[325365827,1714752665355,-151.0,0.00026301,2]
[325365828,1714752665364,-1214.88,0.00026301,2]
[325365829,1714752665374,-1435.75,0.00026301,2]
[325365830,1714752665383,-4570.301963,0.00026301,2]
[325365831,1714752665393,-1377.22,0.00026301,2]
[325365832,1714752665402,-1000.0,0.00026364,2]
[325365833,1714752665411,-267.38447327,0.000264,2]
[325365834,1714752665707,-341.70283673,0.000264,2]
[325365835,1714752665717,-835.32965575,0.00026438,2]
[325365836,1714752665726,-493.0,0.00026463,2]
[325365837,1714752665736,-609.08731,0.000265,2]
[325365838,1714752665745,-1613.7,0.00026534,3]
[325365839,1714752665755,-500.0,0.00026575,2]
[325365840,1714752665764,-500.0,0.00026575,2]
[325365841,1714752665776,-579.30273395,0.00026575,2]
[325365842,1714752665786,-588.8,0.00026575,2]
[325365843,1714752665795,-597.46,0.00026575,2]
[325365844,1714752665804,-500.0,0.00026575,2]
[325365845,1714752665813,-500.0,0.00026575,2]
[325365846,1714752665823,-500.0,0.00026575,2]
[325365847,1714752665832,-500.0,0.00026575,2]
[325365848,1714752665841,-631.93,0.00026575,2]
[325365849,1714752665850,-500.0,0.00026575,2]
[325365850,1714752665860,-887.56,0.00026575,2]
[325365851,1714752665869,-500.0,0.00026575,2]
[325365852,1714752665879,-804.94,0.00026575,2]
[325365853,1714752665889,-500.0,0.00026575,2]
[325365854,1714752665899,-2485.15,0.00026575,2]
[325365855,1714752665913,-500.0,0.00026575,2]
[325365856,1714752665932,-500.0,0.00026575,2]
[325365857,1714752665950,-1245.86,0.00026575,2]
[325365858,1714752665970,-500.0,0.00026575,2]
[325365859,1714752665979,-625.08,0.00026575,2]
[325365860,1714752665994,-500.0,0.00026575,2]
[325365861,1714752666003,-500.0,0.00026575,2]
[325365862,1714752666013,-806.09,0.00026575,2]
[325365863,1714752666023,-500.0,0.00026575,2]
[325365864,1714752666033,-500.0,0.00026575,2]
[325365865,1714752666043,-500.0,0.00026575,2]
[325365866,1714752666052,-500.0,0.00026575,2]
[325365867,1714752666065,-500.0,0.00026575,2]
[325365868,1714752666076,-500.0,0.00026575,2]
[325365869,1714752666085,-1297.22,0.00026575,2]
[325365870,1714752666095,-512.1,0.00026575,2]
[325365871,1714752666104,-500.0,0.00026575,2]
[325365872,1714752666114,-500.0,0.00026575,2]
[325365873,1714752666123,-176.77319122,0.00026575,2]
[325365874,1714752666132,-500.0,0.00026575,2]
[325365875,1714752666142,-562.7,0.00026575,2]
[325365876,1714752666151,-500.0,0.00026575,2]
[325365877,1714752666160,-586.15,0.00026575,2]
[325365878,1714752666170,-500.0,0.00026575,2]
[325365879,1714752666179,-643.18,0.00026575,2]
[325365880,1714752666188,-500.0,0.00026575,2]
[325365881,1714752666198,-500.0,0.00026575,2]
[325365882,1714752666207,-1159.64,0.00026575,2]
[325365883,1714752666216,-607.56,0.00026575,2]
[325365884,1714752666226,-500.0,0.00026575,2]
[325365885,1714752666236,-1526.51,0.00026575,2]
[325365886,1714752666245,-2142.42,0.00026575,2]
[325365887,1714752666254,-151.0,0.00026575,2]